Cogmind - Beta 10.1 @@@ ROGUE MODE // 2020.10.21 @ 19:52:05 Player: Cracklepappy Result: Destroyed by D-53 Grenadier with Mini Grenade Launcher Performance ------------- Evolutions (0) 0 Regions Visited (2) 400 Robots Destroyed (25) 125 Value Destroyed (600) 600 Prototype IDs (2) 40 Alien Tech Used (0) 0 Bonus (0) 0 TOTAL SCORE: 1165 Bonus ------- None Cogmind --------- Core Integrity 0/250 Matter 237/300 Energy 125/125 System Corruption 0% Temperature Cool (46) Movement Treading (220) Ox3 Location -10/Mines Parts ------- > --- POWER (1) -------- Light Ion Engine > --- PROPULSION (2) --- Light Treads Wheel > --- UTILITY (2) ------ High-capacity Storage Unit High-capacity Storage Unit > --- WEAPON (2) ------- Improved Light Cannon Improved Light Cannon > --- INVENTORY (20) --- Ion Engine Light Ion Engine Light Ion Engine Light Nuclear Core Light Treads Medium Storage Unit Medium Storage Unit Large Storage Unit Large Storage Unit Improved Signal Interpreter Light Armor Plating Hardened Light Armor Plating Hardened Light Armor Plating Hardened Light Armor Plating Hardened Light Armor Plating Light Assault Rifle Light Cannon Improved Light Cannon Improved Light Cannon Mining Laser Peak State ------------ > --- POWER ------------ Light Ion Engine > --- PROPULSION ------- Light Treads Wheel > --- UTILITY ---------- High-capacity Storage Unit High-capacity Storage Unit > --- WEAPON ----------- Improved Light Cannon Improved Light Cannon > --- INVENTORY -------- Ion Engine Light Ion Engine Light Ion Engine Light Nuclear Core Light Treads Medium Storage Unit Medium Storage Unit Large Storage Unit Large Storage Unit Improved Signal Interpreter Light Armor Plating Hardened Light Armor Plating Hardened Light Armor Plating Hardened Light Armor Plating Hardened Light Armor Plating Light Assault Rifle Light Assault Rifle Light Cannon Mining Laser [Rating: 11] Favorites ----------- Power Light Ion Engine Engine Light Ion Engine Propulsion Wheel Treads Light Treads Wheel Wheel Utility High-capacity Storage Unit Storage High-capacity Storage Unit Weapon Improved Light Cannon Energy Gun Medium Laser Ballistic Gun Light Assault Rifle Ballistic Cannon Improved Light Cannon Build | -11 -10 -10 ------- Run | Scr Mat Min Slots Evolved . | . . . Power . | . . . Propulsion . | . . . Utility . | . . . Weapon . | . . . Parts Attached 21 | 7 14 . Power 3 | 1 2 . Engine 3 | 1 2 . Core . | . . . Reactor . | . . . Propulsion 4 | 2 2 . Treads 2 | 1 1 . Leg . | . . . Wheel 2 | 1 1 . Hover . | . . . Flight . | . . . Utility 7 | 2 5 . Device . | . . . Storage 7 | 2 5 . Processor . | . . . Hackware . | . . . Protection . | . . . Artifact . | . . . Weapon 7 | 2 5 . Energy Gun 1 | 1 . . Energy Cannon . | . . . Ballistic Gun 4 | 1 3 . Ballistic Cannon 2 | . 2 . Launcher . | . . . Special Weapon . | . . . Impact Weapon . | . . . Slashing Weapon . | . . . Piercing Weapon . | . . . Special Melee Weapon . | . . . Unidentified Prototypes . | . . . Parts Lost 4 | . 4 . Power . | . . . Propulsion 2 | . 2 . Utility . | . . . Weapon 2 | . 2 . Highest Loss Streak 2 | . 2 . Average Slot Usage (%) 99 | . 99 100 Engine 14 | . 14 14 Treads 13 | . 13 14 Wheel 13 | . 13 14 Storage 28 | . 28 28 Ballistic Gun 12 | . 21 . Ballistic Cannon 14 | . 5 28 Naked Turns . | . . . Heaviest Build 75 | 16 75 75 Greatest Support 20 | 20 10 10 Greatest Overweight (x) 7 | 1 7 7 Average Overweight (x) 4 | . 4 7 Largest Inventory Capacity 20 | 8 20 20 Average Capacity 16 | 5 14 20 Most Carried 20 | 8 20 20 Average Carried 16 | 3 14 20 Final Capacity 20 | 8 20 20 Final Carried 20 | 8 20 20 Class Distribution -------------------- 53% | Hauler-Mutant 46% | Mutant Dominant Class ---------------- Mutant | -10/Materials Hauler-Mutant | -10/Mines Resources | -11 -10 -10 ----------- Run | Scr Mat Min Matter Collected 726 | 274 452 . Remotely . | . . . Salvage Created 852 | 115 733 4 Parts 53 | 7 46 . Haulers Intercepted 1 | . 1 . Recyclers Shooed 2 | . 2 . Parts Field Recycled . | . . . Retrieved Matter . | . . . Parts Self-Destructed . | . . . Prevented . | . . . Kills | -11 -10 -10 ------- Run | Scr Mat Min Combat Hostiles Destroyed 19 | . 18 1 Guns 17 | . 17 . Cannons 2 | . 1 1 Classes Destroyed 7 | 2 4 1 Tunneler 1 | 1 . . Hauler 1 | . 1 . Recycler 2 | 1 1 . Watcher 2 | . 2 . Swarmer 6 | . 6 . Grunt 12 | . 12 . Demolisher 1 | . . 1 Best Kill Streak 4 | 1 4 1 Combat Bots Only 4 | . 4 1 Max Kills in Single Turn 1 | 1 1 1 Gunslinging . | . . . Exploded . | . . . Melee . | . . . Uniques/NPCs Destroyed . | . . . Combat | -11 -10 -10 -------- Run | Scr Mat Min Damage Taken 1061 | . 864 197 Core 259 | . 226 33 Absorbed by Shields . | . . . Core Remaining (%) 100 | 100 . . Volleys Fired 117 | 4 109 4 Largest 2 | 2 2 2 Hottest 78 | 70 78 78 Shots Fired 230 | 8 214 8 Gun 212 | 8 204 . Cannon 18 | . 10 8 Launcher . | . . . Special . | . . . Kinetic 215 | 4 203 8 Thermal 15 | 4 11 . Explosive . | . . . Electromagnetic . | . . . Robot Hit Streak 19 | 4 19 2 Robot Miss Streak 4 | 1 4 1 Penetration Max . | . . . Secondary Targets 1 | . 1 . Max Gunslinging Chain 1 | . 1 . Shots Hit Robots 154 | 5 145 4 Core Hits 46 | 3 41 2 Critical Hits 1 | . 1 . Critical Kills . | . . . Critical Parts Destroyed 1 | . 1 . Melee Attacks . | . . . Impact . | . . . Slashing . | . . . Piercing . | . . . Sneak Attacks . | . . . Combat Hostiles . | . . . Follow-up Attacks . | . . . Damage Inflicted 1540 | 54 1403 83 Guns 1350 | 54 1296 . Cannons 190 | . 107 83 Explosions . | . . . Melee . | . . . Ramming . | . . . Kinetic 1414 | 16 1315 83 Thermal 126 | 38 88 . Explosive . | . . . Electromagnetic . | . . . Impact . | . . . Slashing . | . . . Piercing . | . . . Highest Corruption . | . . . Average Corruption . | . . . Corruption Purged . | . . . Overload Shots . | . . . Overflow Damage 4 | . 4 . Projectiles 4 | . 4 . Explosions . | . . . Melee . | . . . Knockbacks 3 | . 3 . Impact . | . . . Kinetic 2 | . 2 . Secondary 1 | . 1 . Self-Inflicted Damage . | . . . Shots . | . . . Rammed . | . . . Targets Rammed . | . . . Kicked . | . . . Crushed . | . . . Highest Temperature 214 | 40 214 54 Average Temperature 48 | 20 54 32 Received Heat Transfer 318 | . 318 . Siege Activations . | . . . Robots Corrupted . | . . . Combat Hostiles . | . . . Parts Fried . | . . . Impact Corruptions . | . . . Robots Melted . | . . . Combat Hostiles . | . . . Parts Melted . | . . . Heat Transferred 370 | 111 259 . Parts Sabotaged . | . . . Parts Stolen . | . . . Parts Stripped . | . . . Power Chain Reactions . | . . . Missiles Intercepted . | . . . Alert | -11 -10 -10 ------- Run | Scr Mat Min Peak Influence 289 | 10 289 48 Initial 48 | . 6 48 Average 119 | 2 196 22 Maximum Alert Level 1 | . 1 . Low Security (%) 70 | 100 46 100 Level 1 29 | . 53 . Level 2 . | . . . Level 3 . | . . . Level 4 . | . . . Level 5 . | . . . High Security . | . . . Max Security . | . . . Squads Dispatched 4 | . 4 . Investigation 4 | . 4 . Extermination . | . . . Reinforcement . | . . . Assault . | . . . Garrison . | . . . Intercept . | . . . Construction Impeded . | . . . Haulers Reinforced . | . . . Stealth | -11 -10 -10 --------- Run | Scr Mat Min Distress Signals . | . . . Communications Jammed . | . . . Distress Signals . | . . . Times Spotted 34 | . 32 2 Peak Tracking Total 4 | . 4 2 Tactical Retreats 2 | . 2 . Traps | -11 -10 -10 ------- Run | Scr Mat Min Traps Triggered 2 | . 2 . Indirectly . | . . . Trap Hack Attempts . | . . . Triggered . | . . . Disarmed . | . . . Reprogrammed . | . . . Reused . | . . . Traps Extracted . | . . . Installed . | . . . Triggered . | . . . Machines | -11 -10 -10 ---------- Run | Scr Mat Min Machines Disabled . | . . . Max in Single Turn . | . . . Machines Sabotaged . | . . . Garrisons Compromised . | . . . Overloaded Fab Kills . | . . . Fab Network Shutdowns . | . . . Hacking | -11 -10 -10 --------- Run | Scr Mat Min Machines Accessed 9 | . 9 . Terminals 7 | . 7 . Fabricators . | . . . Repair Stations . | . . . Recycling Units 2 | . 2 . Scanalyzers . | . . . Garrison Access . | . . . Total Hacks 26 | . 26 . Successful 13 | . 13 . Failed 12 | . 12 . Catastrophic 2 | . 2 . Database Lockouts 1 | . 1 . Manual 20 | . 20 . Terminals 24 | . 24 . Fabricators . | . . . Repair Stations . | . . . Recycling Units 2 | . 2 . Scanalyzers . | . . . Garrison Access . | . . . Terminal Hacks 11 | . 11 . Robot Analysis 7 | . 7 . Prototype ID Bank 1 | . 1 . Locate Traps 1 | . 1 . Hauler Manifests 2 | . 2 . Fabricator Hacks . | . . . Repair Station Hacks . | . . . Recycling Unit Hacks . | . . . Scanalyzer . | . . . Garrison Access Hacks . | . . . Unauthorized Hacks 2 | . 2 . Terminals . | . . . Fabricators . | . . . Repair Stations . | . . . Recycling Units 2 | . 2 . Tunnel 2 | . 2 . Scanalyzers . | . . . Garrison Access . | . . . Data Cores Recovered . | . . . Used . | . . . Hacking Detections 8 | . 8 . Full Trace Events 1 | . 1 . Feedback Events . | . . . Feedback Blocked . | . . . Robot Schematics Acquired . | . . . Robots Built . | . . . Matter . | . . . Time . | . . . Total Robot Build Rating . | . . . Part Schematics Acquired . | . . . Parts Built . | . . . Matter . | . . . Time . | . . . Total Part Build Rating . | . . . Parts Repaired . | . . . Time . | . . . Parts Recycled . | . . . Recycled Matter . | . . . Retrieved Matter . | . . . Retrieved Components . | . . . Parts Scanalyzed . | . . . Part Schematics Acquired . | . . . Parts Damaged . | . . . Bothacking | -11 -10 -10 ------------ Run | Scr Mat Min Used RIF Installer . | . . . Robots Hacked . | . . . Non-combat . | . . . Combat . | . . . Robot Hacks Applied . | . . . Relay Couplers Released . | . . . Robots Rewired . | . . . Allies Hacked . | . . . Hacks Repelled . | . . . Allies | -11 -10 -10 -------- Run | Scr Mat Min Total Allies . | . . . Largest Group . | . . . Highest-Rated Group . | . . . Highest-Rated Ally . | . . . Total Orders . | . . . Ally Attacks . | . . . Total Damage . | . . . Kills . | . . . Allies Corrupted . | . . . Allies Melted . | . . . Intel | -11 -10 -10 ------- Run | Scr Mat Min Robot Analysis Total 7 | . 7 . Derelict Logs Recovered . | . . . Drone Launches . | . . . Drone Recoveries . | . . . Exploration | -11 -10 -10 ------------- Run | Scr Mat Min Turns Passed 2133 | 88 1204 841 Spaces Moved 789 | 68 656 65 Core 3 | 3 . . Treads 2 | 2 . . Legs . | . . . Wheels 784 | 63 656 65 Hover . | . . . Flight . | . . . Fastest Speed 50 | 50 90 150 Average Speed 121 | 86 121 150 Slowest Speed 160 | 160 150 150 Overloaded Moves . | . . . Propulsion Burnouts . | . . . Robots Hopped . | . . . Cave-ins Triggered . | . . . Exploration Rate (%) 39 | 5 98 15 Regions Visited 2 Branch Regions 1 Pre-discovered Areas 3 | . 2 1 Known Exits Taken . | . . . Unknown Exits Taken 2 | 1 1 . Scrap Searched . | . . . Spaces Dug . | . . . Terrain Destroyed 1 | . . 1 Melee . | . . . Projectile 1 | . . 1 AOE . | . . . Terrain Rammed . | . . . Walls Destroyed . | . . . Machines Disabled . | . . . Actions | -11 -10 -10 --------- Run | Scr Mat Min Total 1766 | 86 879 801 Wait 788 | . 56 732 Move 787 | 67 655 65 Hop . | . . . Pick Up 35 | 8 27 . Fast Attach 9 | 7 2 . Attach 4 | . 4 . Detach . | . . . Swap 8 | . 8 . Drop 18 | . 18 . Fire 117 | 4 109 4 Melee . | . . . Ram . | . . . Kick . | . . . Crush . | . . . Escape Stasis . | . . . Rewire . | . . . Trap . | . . . Miscellaneous . | . . . Route ------- -11/Scrapyard -10/Materials (discovered 5 exits: [*Mat x3] / [*Min x2]) -10/Mines History --------- Turn | Location | Event 6 | -11/Scrapyard | Discovered new exit (range 14) 89 | -11/Scrapyard | Entered Materials 89 | -10/Materials | Discovered new exit (range 8) 318 | -10/Materials | Build established: Mutant 447 | -10/Materials | Discovered new exit (range 14) 684 | -10/Materials | Core integrity fell below 50% 735 | -10/Materials | Discovered new exit (range 13) 977 | -10/Materials | Central database locked down 1025 | -10/Materials | Core integrity fell below 20% 1054 | -10/Materials | Discovered new exit (range 16) 1186 | -10/Materials | Discovered new exit (range 11) 1293 | -10/Materials | Entered Mines 1294 | -10/Mines | Learned location of Storage (-7) 1304 | -10/Mines | Build established: Hauler-Mutant 1314 | -10/Mines | Assembled infested the area 1319 | -10/Mines | Assisted by a Guerilla fighting off Assembled 2134 | -10/Mines | Destroyed by D-53 Grenadier with Mini Grenade Launcher Last Messages --------------- GOAL=ESCAPE 01294_ A derelict emerges from the shadows: "Are any of them following you? I'm here trying to lose some heat after our second raid on Storage failed. Whatever you do stay away from that place, they've tightened security following our previous successful raids." World map updated: -7/Storage. 01296_ 71-9BS(g): "We scattered so the Unaware couldn't effectively use their advantage in numbers, and I suggest you do the same." 01296_ 71-9BS(g) slips back into the shadows. 01314_ ALERT: Infestation in the mines, dispatching Demolisher response squad. 01319_ A derelict emerges from the shadows: "You need to get out of here! I've been tracking a group of Assembled to figure out where they're coming from, and they're closing on this area, come on!" 02124_ R-06 Scavenger destroyed. 02124_ K-01 Serf destroyed. 02128_ D-53 Grenadier destroyed. 02131_ U-05 Engineer lays Concrete. 02133_ K-01 Serf collects debris. 02133_ U-05 Engineer lays Concrete. Map ----- +----------------------------------------------------+ | ????????????????????????????????????????? | | ????????????????????????????????????????? | | ????????????????????????????????????????? | | ????????????????????????????????????????? | | ????????????????????????????????????????? | | ????????????????????????????????????????? | | ????????????????????????????????????????? | | ????????????????????????????????????????? | | ????????????????????????????????????????? | | ????????????????????????????????????????? | | ????????????????????????????????????????? | | ????????????????????????????????????????? | | ????????????????????????????????????????? | | ????????????????????????????????????????? | | ????????????????????????????????????????? | | ????????????????????????????????????????? | | ????????????????????????????????????????? | | ?????????????##?????????????????????????? | | ????????????## ??????????????###???????? | | ????????????#! ???????????? # #???????? | | ????????????# ??????##### ????????? | | ????????????# ! ??#### # ???#?????? | | ?????????????# ### #### ##????? | | ?????????? ##! # ! d ;#????? | | ???????????# k |!%! #????? | | ???????????# $ u @ #????????? | | ???????????????# ## ##????????? | | ???????????????????## ##?????????? | | ????????????????????## #??????????? | | ?????????????????????## ##??????????? | | ????????????????????### ####???????????? | | ?????????????????#### ##????????????? | | ???????????????### #????????????? | | ??????????????## ## #????????????? | | ??????????????# #### ##???######???? | | ??????????????# #??# #???## ##??? | | ??????????????## ##??# ##### #??? | | ???????????????###????# ## #???? | | ??????????????????????## #????? | | ???????????????????????## ##????? | | ????????????????????????#### ##????? | | ???????????????????????????## ##???? | | ????????????????????????????## ##??? | | ?????????????????????????????## #??? | | ?????????????????????????????## #??? | | ??????????????????????????#### #??? | | ?????????????????????????## ##??? | | ?????????????????????????# ####???? | | ?????????????????????????# ####??????? | | ?????????????????????????## ##?????????? | +----------------------------------------------------+ Best States ------------- Heat Dissipation 25 Energy Generation 10 Energy Capacity 250 Matter Stores 300 Matter Capacity 300 Sight Range 16 Terrain Scan Density 10 Evasion (%) 42 Recoil Reduction 1 Item Schematics ----------------- None Robot Schematics ------------------ None Fabricated ------------ Nothing Alien Tech Used ----------------- None Achievements -------------- None Challenges ------------ None Game ------ Seed RecyclingAlphaStabilizer Manual? 0 Play Time 00:17:37 Cumulative 245.7 hours Start 2020.10.21 @ 19:19:41 End 2020.10.21 @ 19:52:05 Sessions 1 Manual Loads 0 Difficulty Rogue Special Mode None Game No. 260 Rogue 260 Adventurer 0 Explorer 0 Win Type - Total 2 Types 2/0/0/0/0/0/0/0/0 Lore% 62 Gallery% 77 Achievement% 58 Wizard Run 0 Options --------- ASCII 0 Keyboard 0 Movement Numpad Keybinds 0 Fullscreen 2 Font 24/Terminus Map View 76x50 Tactical HUD 1 Map Filters NONE Filters NONE Steam 1 RUN: a9e5244a-370a-4ad4-bbf9-31c6113cf44a